fUST/lending_fUST_20251230
["ID","MTS","AMOUNT","RATE_DAILY","PERIOD"]
[400067913,1767063043371,-188.22075113,0.00021917,2]
[400067914,1767063043382,-500.31919433,0.00021917,2]
[400067915,1767063043391,-500.08288355,0.00021917,2]
[400067916,1767063043401,-274.58472757,0.00021917,2]
[400067918,1767063043410,-338.6906951,0.00021917,2]
[400067920,1767063043420,-247.18789958,0.00021917,2]
[400067921,1767063043429,-623.80024552,0.00021917,2]
[400067922,1767063043439,-279.06178333,0.00021917,2]
[400067923,1767063043448,-490.82856168,0.00021917,2]
[400067924,1767063043458,-327.07577076,0.00021917,2]
[400067926,1767063043467,-451.31189708,0.00021917,2]
[400067928,1767063043476,-520.91238729,0.00021917,2]
[400067929,1767063043486,-427.21938991,0.00021917,2]
[400067930,1767063043495,-357.75121892,0.00021917,2]
[400067931,1767063043505,-278.66468423,0.00021917,2]
[400067932,1767063043514,-295.3615361,0.00021917,2]
[400067934,1767063043523,-423.1302761,0.00021917,2]
[400067935,1767063043533,-490.84153265,0.00021917,2]
[400067936,1767063043541,-472.95202256,0.00021917,2]
[400067937,1767063043550,-234.12803578,0.00021917,2]
[400067938,1767063043559,-340.25687684,0.00021917,2]
[400067939,1767063043569,-500.0,0.00021917,2]
[400067941,1767063043579,-372.65599779,0.00021917,2]
[400067942,1767063043588,-214.73939159,0.00021917,2]
[400067943,1767063043597,-418.05862632,0.00021917,2]
[400067944,1767063043606,-486.68860623,0.00021917,2]
[400067945,1767063043615,-221.34309167,0.00021917,2]
[400067946,1767063043624,-333.53386394,0.00021917,2]
[400067947,1767063043633,-480.85340029,0.00021917,2]
[400067948,1767063043643,-387.06567405,0.00021917,2]
[400067949,1767063043652,-254.12259094,0.00021917,2]
[400067950,1767063043661,-348.50363495,0.00021917,2]
[400067951,1767063043670,-232.74596108,0.00021917,2]
[400067952,1767063043680,-504.70511967,0.00021917,2]
[400067953,1767063043690,-470.17191108,0.00021917,2]
[400067954,1767063043699,-164.08947404,0.00021917,2]
[400067955,1767063043708,-459.6084802,0.00021917,2]
[400067956,1767063043718,-217.61030986,0.00021917,2]
[400067957,1767063043727,-235.91104523,0.00021917,2]
[400067958,1767063043739,-229.40932393,0.00021917,2]
[400067959,1767063043749,-500.0,0.00021917,2]
[400067960,1767063043759,-305.08698484,0.00021917,2]
[400067961,1767063043767,-502.45675969,0.00021917,2]
[400067962,1767063043777,-342.42427954,0.00021917,2]
[400067963,1767063043786,-488.58314338,0.00021917,2]
[400067964,1767063043796,-500.11271977,0.00021917,2]
[400067965,1767063043805,-462.00409973,0.00021917,2]
[400067966,1767063043814,-252.77574783,0.00021917,2]
[400067967,1767063043823,-500.16157475,0.00021917,2]
[400067968,1767063043833,-333.92618675,0.00021917,2]
[400067969,1767063043842,-243.72205938,0.00021917,2]
[400067970,1767063043851,-435.03117335,0.00021917,2]
[400067971,1767063043861,-408.62031573,0.00021917,2]
[400067972,1767063043870,-172.92068737,0.00021917,2]
[400067973,1767063043879,-397.40045629,0.00021917,2]
[400067974,1767063043888,-287.73030606,0.00021917,2]
[400067975,1767063043897,-252.67655097,0.00021917,2]
[400067976,1767063043906,-508.85126358,0.00021917,2]
[400067977,1767063043916,-501.96134471,0.00021917,2]
[400067978,1767063043925,-497.79668019,0.00021917,2]
[400067979,1767063043935,-187.97843564,0.00021917,2]
[400067980,1767063043944,-515.0797842,0.00021917,2]
[400067981,1767063043953,-508.01145599,0.00021917,2]
[400067982,1767063043962,-621.60965745,0.00021917,2]
[400067983,1767063043971,-180.51459048,0.00021917,2]
[400067984,1767063043981,-370.79446807,0.00021917,2]
[400067985,1767063043990,-489.89503158,0.00021917,2]
[400067986,1767063043999,-504.58997569,0.00021917,2]
[400067987,1767063044008,-274.25981133,0.00021917,2]
[400067988,1767063044017,-498.57323041,0.00021917,2]
[400067989,1767063044026,-511.52666721,0.00021917,2]
[400067990,1767063044035,-407.60436582,0.00021917,2]
[400067991,1767063044044,-498.4005384,0.00021917,2]
[400067992,1767063044053,-504.45343671,0.00021917,2]
[400067993,1767063044062,-500.0,0.00021917,2]
[400067994,1767063044072,-348.13867843,0.00021917,2]
[400067995,1767063044082,-263.23087091,0.00021917,2]
[400067996,1767063044091,-548.15715932,0.00021917,2]
[400067997,1767063044101,-333.92290273,0.00021917,2]
[400067998,1767063044110,-257.99044972,0.00021917,2]
[400067999,1767063044119,-537.17406189,0.00021917,2]
[400068000,1767063044129,-501.33798859,0.00021917,2]
[400068001,1767063044138,-514.84388318,0.00021917,2]
[400068002,1767063044148,-226.89443186,0.00021917,2]
[400068003,1767063044158,-427.12423668,0.00021917,2]
[400068004,1767063044167,-457.22175295,0.00021917,2]
[400068005,1767063044177,-523.45254658,0.00021917,2]
[400068006,1767063044187,-502.04455924,0.00021917,2]
[400068007,1767063044196,-248.26170506,0.00021917,2]
[400068008,1767063044205,-228.93348856,0.00021917,2]
[400068009,1767063044215,-539.26104911,0.00021917,2]
[400068010,1767063044224,-427.7689353,0.00021917,2]
[400068011,1767063044234,-507.05180172,0.00021917,2]
[400068012,1767063044243,-553.39742545,0.00021917,2]
[400068013,1767063044253,-502.29520556,0.00021917,2]
[400068014,1767063044263,-512.29840009,0.00021917,2]
[400068015,1767063044272,-363.68099683,0.00021917,2]
[400068016,1767063044282,-311.40132827,0.00021917,2]
[400068017,1767063044291,-512.66522346,0.00021917,2]
[400068018,1767063044301,-509.16060867,0.00021917,2]
[400068019,1767063044311,-352.39098907,0.00021917,2]
[400068020,1767063044320,-528.21056679,0.00021917,2]
[400068021,1767063044329,-447.97991166,0.00021917,2]
[400068022,1767063044338,-512.34251123,0.00021917,2]
[400068023,1767063044348,-533.10444288,0.00021917,2]
[400068024,1767063044357,-638.97867053,0.00021917,2]
[400068025,1767063044366,-192.71983482,0.00021917,2]
[400068026,1767063044376,-269.915319,0.00021917,2]
[400068027,1767063044385,-500.0,0.00021917,2]
[400068028,1767063044395,-370.28388052,0.00021917,2]
[400068029,1767063044403,-591.65441113,0.00021917,2]
[400068030,1767063044413,-257.247478,0.00021917,2]
[400068031,1767063044423,-497.71228405,0.00021917,2]
[400068032,1767063044432,-403.96121089,0.00021917,2]
[400068033,1767063044441,-422.94798478,0.00021917,2]
[400068034,1767063044451,-520.96277231,0.00021917,2]
[400068035,1767063044460,-514.79568651,0.00021917,2]
[400068036,1767063044470,-507.99851295,0.00021917,2]
[400068037,1767063044479,-571.21392777,0.00021917,2]
[400068038,1767063044488,-7648.051807,0.00021917,2]
[400068039,1767063044497,-547.50276936,0.00021917,2]
[400068040,1767063044506,-509.18604531,0.00021917,2]
[400068041,1767063044515,-316.16014628,0.00021917,2]
[400068042,1767063044524,-550.90127323,0.00021917,2]
[400068043,1767063044534,-426.20730668,0.00021917,2]
[400068044,1767063044543,-509.70359709,0.00021917,2]
[400068045,1767063044552,-359.95549187,0.00021917,2]
[400068046,1767063044562,-218.777766,0.00021917,2]
[400068047,1767063044571,-501.22712139,0.00021917,2]
[400068048,1767063044580,-223.21748018,0.00021917,2]
[400068049,1767063044590,-500.0,0.00021917,2]
[400068050,1767063044600,-367.5163094,0.00021917,2]
[400068051,1767063044609,-486.84467399,0.00021917,2]
[400068052,1767063044619,-486.74530578,0.00021917,2]
[400068053,1767063044629,-488.95703903,0.00021917,2]
[400068054,1767063044639,-488.40239306,0.00021917,2]
[400068055,1767063044648,-269.33315418,0.00021917,2]
[400068056,1767063044657,-500.35952636,0.00021917,2]
[400068057,1767063044667,-380.57291504,0.00021917,2]
[400068058,1767063044676,-206.65781947,0.00021917,2]
[400068059,1767063044685,-500.72316954,0.00021917,2]
[400068060,1767063044694,-244.9309608,0.00021917,2]
[400068061,1767063044703,-292.27108544,0.00021917,2]
[400068062,1767063044713,-180.69490441,0.00021917,2]
[400068063,1767063044722,-481.30405838,0.00021917,2]
[400068064,1767063044732,-468.20528792,0.00021917,2]
[400068065,1767063044744,-330.74141711,0.00021917,2]
[400068066,1767063044754,-468.46876956,0.00021917,2]
[400068067,1767063044763,-496.84809073,0.00021917,2]
[400068068,1767063044772,-1000.1468578,0.00021917,2]
[400068072,1767063044861,-602.50773801,0.00021917,2]
[400068073,1767063044880,-534.80878098,0.00021917,2]
[400068074,1767063044889,-433.93542274,0.00021917,2]
[400068075,1767063044898,-234.09703627,0.00021917,2]
[400068076,1767063044907,-543.01533026,0.00021917,2]
[400068077,1767063044916,-276.79786927,0.00021917,2]
[400068078,1767063044925,-231.29106344,0.00021917,2]
[400068079,1767063044934,-415.78305326,0.00021917,2]
[400068080,1767063044943,-507.39394315,0.00021917,2]
[400068081,1767063044952,-393.17886351,0.00021917,2]
[400068082,1767063044962,-433.42504771,0.00021917,2]
[400068083,1767063044971,-319.94055293,0.00021917,2]
[400068084,1767063044980,-232.13906843,0.00021917,2]
[400068085,1767063044989,-210.76009802,0.00021917,2]
[400068086,1767063044999,-626.49848798,0.00021917,2]
[400068087,1767063045008,-230.65898868,0.00021917,2]
[400068088,1767063045018,-262.90121912,0.00021917,2]
[400068089,1767063045027,-182.95883851,0.00021917,2]
[400068090,1767063045036,-170.27376167,0.00021917,2]
[400068091,1767063045046,-491.35885865,0.00021917,2]
[400068092,1767063045056,-458.50221432,0.00021917,2]
[400068093,1767063045066,-464.92212663,0.00021917,2]
[400068094,1767063045075,-464.56381766,0.00021917,2]
[400068095,1767063045085,-479.81812409,0.00021917,2]
[400068096,1767063045095,-427.11920997,0.00021917,2]
[400068097,1767063045105,-288.94230664,0.00021917,2]
[400068098,1767063045114,-285.47899851,0.00021917,2]
[400068099,1767063045123,-573.23461641,0.00021917,2]
[400068100,1767063045132,-501.2051815,0.00021917,2]
[400068101,1767063045142,-194.53004279,0.00021917,2]
[400068102,1767063045151,-519.17552996,0.00021917,2]
[400068103,1767063045160,-500.71951521,0.00021917,2]
[400068104,1767063045171,-176.45954335,0.00021917,2]
[400068105,1767063045181,-295.22030358,0.00021917,2]
[400068106,1767063045190,-285.81164378,0.00021917,2]
[400068107,1767063045200,-287.08953983,0.00021917,2]
[400068108,1767063045210,-495.99114627,0.00021917,2]
[400068109,1767063045219,-509.52473583,0.00021917,2]
[400068110,1767063045229,-233.95773104,0.00021917,2]
[400068111,1767063045238,-413.36013582,0.00021917,2]
[400068113,1767063045248,-452.76867007,0.00021917,2]
[400068114,1767063045257,-251.7142983,0.00021917,2]
[400068115,1767063045267,-214.62430021,0.00021917,2]
[400068116,1767063045275,-232.50445623,0.00021917,2]
[400068117,1767063045285,-193.5526784,0.00021917,2]
[400068118,1767063045294,-198.30678278,0.00021917,2]
[400068119,1767063045304,-251.40795676,0.00021917,2]
[400068120,1767063045313,-254.64616056,0.00021917,2]
[400068121,1767063045322,-273.21298075,0.00021917,2]
[400068122,1767063045332,-352.12809256,0.00021917,2]
[400068123,1767063045342,-251.46424513,0.00021917,2]
[400068124,1767063045351,-1406.3,0.00021917,2]
[400068125,1767063045360,-191.99719017,0.00021917,2]
[400068126,1767063045370,-290.29849253,0.00021917,2]
[400068127,1767063045380,-408.46147524,0.00021917,2]
[400068128,1767063045389,-510.83887357,0.00021917,2]
[400068129,1767063045400,-529.43122651,0.00021917,2]
[400068130,1767063045409,-598.60330821,0.00021917,2]
[400068131,1767063045418,-201.20744653,0.00021917,2]
[400068132,1767063045428,-449.59900032,0.00021917,2]
[400068133,1767063045437,-462.69119327,0.00021917,2]
[400068134,1767063045447,-343.1745665,0.00021917,2]
[400068135,1767063045456,-277.83974303,0.00021917,2]
[400068136,1767063045465,-286.70770784,0.00021917,2]
[400068137,1767063045474,-229.72161579,0.00021917,2]
[400068138,1767063045484,-265.15378107,0.00021917,2]
[400068139,1767063045494,-440.86023557,0.00021917,2]
[400068140,1767063045503,-500.0,0.00021917,2]
[400068141,1767063045513,-461.88902203,0.00021917,2]
[400068142,1767063045522,-385.91074519,0.00021917,2]
[400068143,1767063045531,-478.07414937,0.00021917,2]
[400068144,1767063045540,-267.3602502,0.00021917,2]
[400068145,1767063045550,-412.67053547,0.00021917,2]
[400068146,1767063045559,-400.76687336,0.00021917,2]
[400068147,1767063045568,-276.59515798,0.00021917,2]
[400068148,1767063045578,-187.59533833,0.00021917,2]
[400068149,1767063045587,-458.8505797,0.00021917,2]
[400068150,1767063045597,-266.37885615,0.00021917,2]
[400068151,1767063045606,-480.0,0.00021917,2]
[400068152,1767063045616,-293.07868979,0.00021917,2]
[400068153,1767063045625,-202.81752215,0.00021917,2]
[400068154,1767063045635,-417.46274433,0.00021917,2]
[400068155,1767063045644,-240.1167908,0.00021917,2]
[400068156,1767063045653,-384.41444147,0.00021917,2]
[400068157,1767063045663,-468.90629687,0.00021917,2]
[400068159,1767063045672,-236.61985417,0.00021917,2]
[400068160,1767063045681,-500.0,0.00021917,2]
[400068162,1767063045690,-500.0,0.00021917,2]
[400068164,1767063045700,-500.48773477,0.00021917,2]
[400068165,1767063045709,-486.97399568,0.00021917,2]
[400068166,1767063045718,-547.30025947,0.00021917,2]
[400068168,1767063045728,-308.41590209,0.00021917,2]
[400068169,1767063045739,-500.0,0.00021917,2]
[400068170,1767063045748,-500.0,0.00021917,2]
[400068171,1767063045758,-414.78188767,0.00021917,2]
[400068172,1767063045767,-400.33130937,0.00021917,2]
[400068173,1767063045777,-371.51920857,0.00021917,2]
[400068174,1767063045787,-463.64086682,0.00021917,2]
[400068175,1767063045796,-253.69817259,0.00021917,2]
[400068176,1767063045806,-500.0,0.00021917,2]
[400068177,1767063045816,-500.0,0.00021917,2]
[400068178,1767063045825,-211.4031778,0.00021917,2]
[400068179,1767063045834,-474.75266645,0.00021917,2]
[400068180,1767063045844,-275.59920934,0.00021917,2]
[400068181,1767063045853,-174.75719953,0.00021917,2]
[400068182,1767063045863,-488.66177969,0.00021917,2]
[400068183,1767063045872,-252.55315958,0.00021917,2]
[400068184,1767063045882,-419.85498423,0.00021917,2]
[400068185,1767063045891,-402.34697744,0.00021917,2]
[400068186,1767063045899,-383.57132978,0.00021917,2]
[400068187,1767063045909,-264.9392192,0.00021917,2]
[400068188,1767063045918,-500.0,0.00021917,2]
[400068189,1767063045928,-395.77091566,0.00021917,2]
[400068190,1767063045937,-322.16356758,0.00021917,2]
[400068191,1767063045946,-398.22585687,0.00021917,2]
[400068192,1767063045955,-543.83018981,0.00021917,2]
[400068193,1767063045965,-500.0,0.00021917,2]
[400068194,1767063045974,-500.0,0.00021917,2]
[400068195,1767063045984,-500.0,0.00021917,2]
[400068196,1767063045993,-295.2511899,0.00021917,2]
[400068197,1767063046002,-501.12093149,0.00021917,2]
[400068198,1767063046011,-500.0,0.00021917,2]
[400068200,1767063046020,-500.0,0.00021917,2]
[400068201,1767063046030,-500.0,0.00021917,2]
[400068202,1767063046039,-500.0,0.00021917,2]
[400068203,1767063046048,-454.07829285,0.00021917,2]
[400068204,1767063046058,-478.21623539,0.00021917,2]
[400068205,1767063046067,-476.90769747,0.00021917,2]
[400068206,1767063046076,-494.20939552,0.00021917,2]
[400068207,1767063046086,-464.76334376,0.00021917,2]
[400068208,1767063046095,-500.0,0.00021917,2]
[400068209,1767063046105,-500.0,0.00021917,2]
[400068210,1767063046115,-413.44984279,0.00021917,2]
[400068211,1767063046124,-497.98100807,0.00021917,2]
[400068212,1767063046133,-453.266142,0.00021917,2]
[400068213,1767063046143,-214.95652762,0.00021917,2]
[400068214,1767063046152,-443.55124021,0.00021917,2]
[400068215,1767063046162,-216.60341199,0.00021917,2]
[400068216,1767063046171,-253.69247233,0.00021917,2]
[400068217,1767063046181,-221.03558067,0.00021917,2]
[400068218,1767063046191,-354.67878225,0.00021917,2]
[400068219,1767063046200,-603.73735318,0.00021917,2]
[400068220,1767063046213,-173.90124415,0.00021917,2]
[400068221,1767063046223,-500.0,0.00021917,2]
[400068222,1767063046232,-500.0,0.00021917,2]
[400068223,1767063046242,-322.31792125,0.00021917,2]
[400068224,1767063046251,-317.5572775,0.00021917,2]
[400068225,1767063046260,-408.64927459,0.00021917,2]
[400068226,1767063046270,-478.56799403,0.00021917,2]
[400068227,1767063046280,-500.0,0.00021917,2]
[400068228,1767063046289,-249.80248237,0.00021917,2]
[400068229,1767063046299,-300.32782807,0.00021917,2]
[400068230,1767063046308,-544.01459209,0.00021917,2]
[400068231,1767063046318,-416.61031872,0.00021917,2]
[400068232,1767063046327,-489.54562049,0.00021917,2]
[400068233,1767063046337,-266.21522382,0.00021917,2]
[400068234,1767063046346,-288.4165173,0.00021917,2]
[400068235,1767063046356,-188.7152254,0.00021917,2]
[400068236,1767063046365,-363.52764202,0.00021917,2]
[400068237,1767063046375,-492.63956766,0.00021917,2]
[400068238,1767063046384,-479.73408141,0.00021917,2]
[400068239,1767063046394,-464.72692172,0.00021917,2]
[400068240,1767063046404,-446.84088329,0.00021917,2]
[400068241,1767063046414,-226.98660314,0.00021917,2]
[400068242,1767063046424,-345.01026882,0.00021917,2]
[400068243,1767063046434,-256.42020615,0.00021917,2]
[400068244,1767063046443,-349.03607023,0.00021917,2]
[400068245,1767063046453,-161.65920763,0.00021917,2]
[400068246,1767063046462,-610.85708768,0.00021917,2]
[400068247,1767063046472,-500.0,0.00021917,2]
[400068248,1767063046482,-335.91898352,0.00021917,2]
[400068249,1767063046492,-484.32908546,0.00021917,2]
[400068250,1767063046501,-361.11966938,0.00021917,2]
[400068251,1767063046511,-500.0,0.00021917,2]
[400068252,1767063046521,-332.84203168,0.00021917,2]
[400068253,1767063046532,-234.9790113,0.00021917,2]
[400068254,1767063046541,-500.0,0.00021917,2]
[400068255,1767063046551,-500.0,0.00021917,2]
[400068256,1767063046561,-175.06796343,0.00021917,2]
[400068257,1767063046571,-249.92808363,0.00021917,2]
[400068258,1767063046580,-222.40611764,0.00021917,2]
[400068259,1767063046589,-500.0,0.00021917,2]
[400068260,1767063046599,-500.0,0.00021917,2]
[400068261,1767063046609,-500.06397758,0.00021917,2]
[400068262,1767063046619,-500.79380713,0.00021917,2]
[400068263,1767063046628,-229.74671603,0.00021917,2]
[400068264,1767063046638,-1000.52584611,0.00021917,2]
[400068265,1767063046648,-500.0,0.00021917,2]
[400068266,1767063046658,-226.51399345,0.00021917,2]
[400068267,1767063046667,-373.31877062,0.00021917,2]
[400068268,1767063046676,-273.05832441,0.00021917,2]
[400068269,1767063046686,-226.68,0.00022,2]
[400068270,1767063046695,-584.51,0.00022,7]
[400068271,1767063046705,-500.0,0.00022191,2]
[400068272,1767063046715,-888.45427144,0.00022191,2]
[400068273,1767063046725,-500.0,0.00022191,2]
[400068274,1767063046737,-500.0,0.00022191,2]
[400068275,1767063046747,-1000.0,0.00022191,2]
[400068276,1767063046757,-500.0,0.00022191,2]
[400068277,1767063046766,-500.0,0.00022191,2]
[400068278,1767063046776,-439.94357266,0.00022191,2]
[400068279,1767063046785,-500.0,0.00022191,2]
[400068280,1767063046795,-500.0,0.00022191,2]
[400068281,1767063046805,-169.60907689,0.00022191,2]
[400068282,1767063046815,-1406.3,0.00022191,2]
[400068283,1767063046825,-500.0,0.00022191,2]
[400068284,1767063046835,-500.0,0.00022191,2]
[400068285,1767063046844,-500.0,0.00022191,2]
[400068286,1767063046854,-500.0,0.00022191,2]
[400068287,1767063046865,-500.0,0.00022191,2]
[400068288,1767063046874,-223.69019589,0.00022191,2]
[400068289,1767063046884,-500.0,0.00022191,2]
[400068290,1767063046893,-500.0,0.00022191,2]
[400068291,1767063046903,-425.3251123,0.00022191,2]
[400068292,1767063046912,-500.0,0.00022191,2]
[400068293,1767063046926,-501.10644483,0.00022191,2]
[400068294,1767063046936,-500.0,0.00022191,2]
[400068295,1767063046945,-232.92010454,0.00022191,2]
[400068296,1767063046954,-500.0,0.00022191,2]
[400068297,1767063046964,-500.0,0.00022191,2]
[400068298,1767063046973,-534.62451166,0.00022191,2]
[400068299,1767063046983,-500.0,0.00022191,2]
[400068300,1767063046992,-229.70253267,0.00022191,2]
[400068301,1767063047001,-500.0,0.00022191,2]
[400068302,1767063047011,-1360.0,0.00022225,2]
[400068303,1767063047021,-205.0,0.00022247,6]
[400068304,1767063047030,-500.0,0.00022465,2]
[400068305,1767063047040,-888.45427144,0.00022465,2]
[400068306,1767063047049,-500.0,0.00022465,2]
[400068307,1767063047059,-500.0,0.00022465,2]
[400068308,1767063047068,-1000.0,0.00022465,2]
[400068309,1767063047078,-500.0,0.00022465,2]
[400068310,1767063047087,-500.0,0.00022465,2]
[400068311,1767063047097,-500.0,0.00022465,2]
[400068312,1767063047106,-500.0,0.00022465,2]
[400068313,1767063047116,-1406.3,0.00022465,2]
[400068314,1767063047125,-500.0,0.00022465,2]
[400068315,1767063047135,-500.0,0.00022465,2]
[400068316,1767063047145,-500.0,0.00022465,2]
[400068317,1767063047155,-500.0,0.00022465,2]
[400068318,1767063047165,-500.0,0.00022465,2]
[400068319,1767063047175,-500.0,0.00022465,2]
[400068320,1767063047185,-500.0,0.00022465,2]
[400068321,1767063047279,-598.56632729,0.00022465,2]
[400068322,1767063047289,-500.0,0.00022465,2]
[400068323,1767063047299,-500.0,0.00022465,2]
[400068324,1767063047309,-500.0,0.00022465,2]
[400068325,1767063047319,-498.64088611,0.00022465,2]
[400068326,1767063047328,-500.0,0.00022465,2]
[400068327,1767063047337,-353.7,0.00022678,2]
[400068328,1767063047348,-5651.24,0.00022733,2]
[400068329,1767063047357,-500.0,0.00022739,2]
[400068330,1767063047367,-888.45427144,0.00022739,2]
[400068331,1767063047376,-500.0,0.00022739,2]
[400068332,1767063047386,-500.0,0.00022739,2]
[400068333,1767063047395,-569.34807645,0.00022739,2]
[400068334,1767063047404,-500.0,0.00022739,2]
[400068335,1767063047414,-500.0,0.00022739,2]
[400068336,1767063047423,-500.0,0.00022739,2]
[400068337,1767063047433,-500.0,0.00022739,2]
[400068338,1767063047442,-1406.3,0.00022739,2]
[400068339,1767063047451,-505.79587884,0.00022739,2]
[400068340,1767063047460,-500.0,0.00022739,2]
[400068341,1767063047469,-504.4,0.00022739,2]
[400068342,1767063047478,-500.0,0.00022739,2]
[400068343,1767063047487,-500.0,0.00022739,2]
[400068344,1767063047496,-500.0,0.00022739,2]
[400068345,1767063047505,-500.0,0.00022739,2]
[400068346,1767063047515,-500.0,0.00022739,2]
[400068347,1767063047524,-592.77633965,0.00022739,2]
[400068348,1767063047534,-500.0,0.00022739,2]
[400068349,1767063047543,-500.0,0.00022739,2]
[400068350,1767063047552,-261.0,0.00022771,2]
[400068351,1767063047562,-1460.0,0.00022773,2]
[400068352,1767063047571,-11429.67,0.000228,2]
[400068353,1767063047579,-500.0,0.00023013,2]
[400068354,1767063047588,-888.45427144,0.00023013,2]
[400068355,1767063047598,-500.0,0.00023013,2]
[400068356,1767063047607,-500.0,0.00023013,2]
[400068357,1767063047617,-500.0,0.00023013,2]
[400068358,1767063047626,-500.0,0.00023013,2]
[400068359,1767063047635,-501.47115126,0.00023013,2]
[400068360,1767063047644,-500.0,0.00023013,2]
[400068361,1767063047653,-1406.3,0.00023013,2]
[400068362,1767063047663,-500.0,0.00023013,2]
[400068363,1767063047672,-500.0,0.00023013,2]
[400068364,1767063047682,-500.0,0.00023013,2]
[400068365,1767063047692,-440.85609027,0.00023148,2]
[400068366,1767063047701,-500.0,0.00023233,2]
[400068367,1767063047710,-289.90205892,0.00023233,2]
[400068368,1767063047719,-500.0,0.00023238,2]
[400068369,1767063047728,-588.47770235,0.00023287,2]
[400068370,1767063047741,-396.60598677,0.00023287,2]
[400068371,1767063047750,-500.0,0.00023287,2]
[400068372,1767063047759,-500.0,0.00023287,2]
[400068373,1767063047768,-500.0,0.00023287,2]
[400068374,1767063047779,-500.0,0.00023287,2]
[400068375,1767063047788,-500.0,0.00023287,2]
[400068376,1767063047798,-1406.3,0.00023287,2]
[400068377,1767063047807,-223.2,0.00023287,2]
[400068378,1767063047816,-500.0,0.00023287,2]
[400068379,1767063047826,-500.0,0.00023287,2]
[400068380,1767063047836,-1560.0,0.00023321,2]
[400068381,1767063047845,-500.0,0.00023322,2]
[400068382,1767063047855,-1625.71832147,0.00023545,2]
[400068383,1767063047864,-500.0,0.00023561,2]
[400068384,1767063047875,-500.0,0.00023561,2]
[400068385,1767063047884,-500.0,0.00023561,2]
[400068386,1767063047893,-500.0,0.00023561,2]
[400068387,1767063047902,-500.0,0.00023561,2]
[400068388,1767063047912,-1406.3,0.00023561,2]
[400068389,1767063047921,-513.16,0.00023561,2]
[400068390,1767063047931,-500.0,0.00023561,2]
[400068391,1767063047940,-500.0,0.00023573,2]
[400068392,1767063047949,-162.87917481,0.00023603,2]
[400068393,1767063047959,-2000.0,0.00023636,7]
[400068394,1767063047969,-200.0,0.00023835,2]
[400068395,1767063047979,-200.0,0.00023835,2]
[400068396,1767063047988,-200.0,0.00023835,2]
[400068397,1767063047997,-200.0,0.00023835,2]
[400068398,1767063048006,-200.0,0.00023835,2]
[400068399,1767063048015,-200.0,0.00023835,2]
[400068400,1767063048025,-200.0,0.00023835,2]
[400068401,1767063048034,-200.0,0.00023835,2]
[400068402,1767063048043,-500.0,0.00023835,2]
[400068403,1767063048053,-500.0,0.00023835,2]
[400068404,1767063048062,-500.0,0.00023835,2]
[400068405,1767063048071,-500.0,0.00023835,2]
[400068406,1767063048080,-500.0,0.00023835,2]
[400068407,1767063048090,-1406.3,0.00023835,2]
[400068408,1767063048099,-500.0,0.00023835,2]
[400068409,1767063048109,-1000.0,0.00023848,10]
[400068410,1767063048118,-791.0,0.00023848,10]
[400068411,1767063048128,-1660.0,0.00023869,2]
[400068412,1767063048137,-1409.93,0.000239,14]
[400068413,1767063048147,-6279.16,0.0002393,2]
[400068414,1767063048157,-500.0,0.00024054,2]
[400068415,1767063048166,-200.0,0.00024109,2]
[400068416,1767063048176,-500.0,0.00024109,2]
[400068417,1767063048185,-500.0,0.00024109,2]
[400068418,1767063048195,-500.0,0.00024109,2]
[400068419,1767063048204,-500.0,0.00024109,2]
[400068420,1767063048213,-500.0,0.00024109,2]
[400068421,1767063048223,-1406.3,0.00024109,2]
[400068422,1767063048232,-508.02519418,0.00024109,2]
[400068423,1767063048242,-353.7,0.0002418,2]
[400068424,1767063048251,-500.0,0.00024278,2]
[400068425,1767063048261,-200.0,0.00024383,2]
[400068426,1767063048271,-500.0,0.00024383,2]
[400068427,1767063048280,-500.0,0.00024383,2]